fUSD/lending_fUSD_20250217
["ID","MTS","AMOUNT","RATE_DAILY","PERIOD"]
[353403706,1739815892985,-691.58,0.00014767,2]
[353403707,1739815892994,-500.0,0.00014767,2]
[353403708,1739815893004,-992.78,0.00014767,2]
[353403709,1739815893013,-596.73,0.00014767,2]
[353403710,1739815893023,-500.0,0.00014767,2]
[353403711,1739815893035,-2407.6,0.00014767,2]
[353403712,1739815893046,-1300.23,0.00014767,2]
[353403713,1739815893057,-1392.59,0.00014767,2]
[353403714,1739815893067,-2009.2,0.00014767,2]
[353403715,1739815893077,-1615.34,0.00014767,2]
[353403716,1739815893087,-500.0,0.00014767,2]
[353403717,1739815893096,-535.37,0.00014767,2]
[353403718,1739815893106,-1060.0,0.00014767,2]
[353403719,1739815893116,-512.19,0.00014767,2]
[353403720,1739815893126,-1404.72,0.00014767,2]
[353403721,1739815893137,-799.51,0.00014767,2]
[353403722,1739815893147,-2087.18,0.00014767,2]
[353403723,1739815893156,-1446.79,0.00014767,2]
[353403724,1739815893166,-846.61,0.00014767,2]
[353403725,1739815893175,-713.92,0.00014767,2]
[353403726,1739815893185,-2283.81,0.00014767,2]
[353403727,1739815893194,-500.0,0.00014767,2]
[353403728,1739815893203,-1112.79,0.00014767,2]
[353403729,1739815893213,-1608.4,0.00014767,2]
[353403730,1739815893223,-532.44,0.00014767,2]
[353403731,1739815893233,-1167.91,0.00014767,2]
[353403732,1739815893243,-500.0,0.00014767,2]
[353403733,1739815893254,-532.72,0.00014767,2]
[353403734,1739815893264,-526.92,0.00014767,2]
[353403735,1739815893274,-827.23,0.00014767,2]
[353403736,1739815893284,-500.0,0.00014767,2]
[353403737,1739815893294,-1013.33,0.00014767,2]
[353403738,1739815893304,-1149.69,0.00014767,2]
[353403739,1739815893314,-1073.86,0.00014767,2]
[353403740,1739815893329,-1210.93,0.00014767,2]
[353403741,1739815893339,-1039.4,0.00014767,2]
[353403742,1739815893350,-714.31,0.00014767,2]
[353403743,1739815893359,-2005.82,0.00014767,2]
[353403744,1739815893372,-727.34,0.00014767,2]
[353403745,1739815893381,-959.95,0.00014767,2]
[353403746,1739815893391,-1713.83,0.00014767,2]
[353403747,1739815893402,-1217.64,0.00014767,2]
[353403748,1739815893412,-1369.23812,0.00014768,6]
[353403749,1739815893422,-300.0,0.0001477,2]
[353403750,1739815893432,-616.97249685,0.00014773,2]
[353403751,1739815893442,-500.0,0.00014773,2]
[353403752,1739815893452,-500.0,0.00014773,2]
[353403753,1739815893463,-607.35647722,0.00014773,2]
[353403754,1739815893474,-150.0,0.00014773,2]
[353403755,1739815893484,-177.6006169,0.00014773,2]
[353403756,1739815893494,-150.0,0.00014773,2]
[353403757,1739815893504,-150.0,0.00014773,2]
[353403758,1739815893514,-2651.65094001,0.00014773,2]
[353403759,1739815893523,-1230.10821492,0.00014773,2]
[353403760,1739815893533,-25401.39464715,0.00014773,2]
[353403761,1739815893544,-150.0,0.00014773,2]
[353403762,1739815893553,-701.09556711,0.00014773,2]
[353403763,1739815893563,-257.55085813,0.00014779,6]
[353403764,1739815893572,-1000.0,0.00014787,2]
[353403765,1739815893582,-1369.23812,0.0001479,6]
[353403766,1739815893592,-207.0,0.0001479,2]
[353403767,1739815893601,-206.0,0.0001479,2]
[353403768,1739815893611,-500.0,0.00014798,2]
[353403769,1739815893621,-680.21,0.00014799,2]
[353403770,1739815893630,-680.21,0.00014799,2]
[353403771,1739815893640,-680.21,0.00014799,2]
[353403772,1739815893649,-680.21,0.00014799,2]
[353403773,1739815893659,-680.3,0.00014799,2]
[353403774,1739815893670,-257.55085813,0.000148,6]
[353403775,1739815893680,-171298.46574084,0.000148,10]
[353403776,1739815893690,-203.8,0.000148,2]
[353403777,1739815893700,-1174.78,0.000148,31]
[353403778,1739815893711,-1174.78,0.000148,31]
[353403779,1739815893721,-1174.78,0.000148,31]
[353403780,1739815893731,-1174.78,0.000148,31]
[353403781,1739815893741,-1174.78,0.000148,31]
[353403782,1739815893750,-1174.78,0.000148,31]
[353403783,1739815893760,-1174.78,0.000148,31]
[353403784,1739815893770,-1174.78,0.000148,31]
[353403785,1739815893780,-1174.78,0.000148,31]
[353403786,1739815893789,-1174.78,0.000148,31]
[353403787,1739815893798,-1174.78,0.000148,31]
[353403788,1739815893807,-1174.78,0.000148,31]
[353403789,1739815893817,-1174.78,0.000148,31]
[353403790,1739815893826,-1174.78,0.000148,31]
[353403791,1739815893835,-1174.78,0.000148,31]
[353403792,1739815893845,-1174.78,0.000148,31]
[353403793,1739815893854,-557914.459509,0.000148,2]
[353403794,1739815893864,-3700.0,0.000148,5]
[353403795,1739815893873,-316.93712561,0.00014818,2]
[353403796,1739815893883,-1089.39,0.00014848,2]
[353403797,1739815893894,-1212.4,0.00014848,2]
[353403798,1739815893904,-1862.54,0.00014848,2]
[353403799,1739815893914,-4612.02,0.00014848,2]
[353403800,1739815893924,-1025.98,0.00014848,2]
[353403801,1739815893935,-913.35,0.00014848,2]
[353403802,1739815893945,-1384.74,0.00014848,2]
[353403803,1739815893955,-464.8590912,0.00014848,2]
[353403804,1739815893966,-1205.86,0.00014848,2]
[353403805,1739815893976,-1429.81,0.00014848,2]
[353403806,1739815893985,-1000.0,0.00014848,2]
[353403807,1739815893995,-1276.75,0.00014848,2]
[353403808,1739815894005,-1076.56,0.00014848,2]
[353403809,1739815894016,-1573.44,0.00014848,2]
[353403810,1739815894026,-500.0,0.00014849,2]
[353403811,1739815894037,-500.0,0.00014849,2]
[353403812,1739815894047,-500.0,0.00014849,2]
[353403813,1739815894058,-1029.48,0.00014849,2]
[353403814,1739815894068,-504.67,0.00014849,2]
[353403815,1739815894078,-577.71,0.00014849,2]
[353403816,1739815894087,-659.19,0.00014849,2]
[353403817,1739815894097,-500.0,0.00014849,2]
[353403818,1739815894106,-697.7,0.00014849,2]
[353403819,1739815894115,-501.93,0.00014849,2]
[353403820,1739815894125,-500.0,0.00014849,2]
[353403821,1739815894135,-737.52,0.00014849,2]
[353403822,1739815894144,-500.0,0.00014849,2]
[353403823,1739815894154,-500.0,0.00014849,2]
[353403824,1739815894164,-724.27,0.00014849,2]
[353403825,1739815894173,-500.0,0.00014849,2]
[353403826,1739815894184,-692.38,0.00014849,2]
[353403827,1739815894193,-500.0,0.00014849,2]
[353403828,1739815894203,-500.0,0.00014849,2]
[353403829,1739815894213,-500.0,0.00014849,2]
[353403830,1739815894223,-500.0,0.00014849,2]
[353403831,1739815894232,-608.98783433,0.00014849,2]
[353403832,1739815894241,-652.56,0.00014849,2]
[353403833,1739815894251,-500.0,0.00014849,2]
[353403834,1739815894261,-500.0,0.00014849,2]
[353403835,1739815894271,-500.0,0.00014849,2]
[353403836,1739815894281,-506.07,0.00014849,2]
[353403837,1739815894291,-500.0,0.00014849,2]
[353403838,1739815894301,-571.18,0.00014849,2]
[353403839,1739815894311,-507.51,0.00014849,2]
[353403840,1739815894321,-589.27,0.00014849,2]
[353403841,1739815894330,-721.7,0.00014849,2]
[353403842,1739815894340,-500.0,0.00014849,2]
[353403843,1739815894350,-559.342957,0.00014849,2]
[353403844,1739815894360,-664.44,0.00014849,2]
[353403845,1739815894369,-527.83,0.00014849,2]
[353403846,1739815894379,-557.1,0.00014849,2]
[353403847,1739815894388,-515.41837521,0.00014849,2]
[353403848,1739815894398,-621.01,0.00014849,2]
[353403849,1739815894408,-609.03,0.00014849,2]
[353403850,1739815894417,-660.07,0.00014849,2]
[353403851,1739815894427,-500.0,0.00014849,2]
[353403852,1739815894435,-500.0,0.00014849,2]
[353403853,1739815894445,-685.59,0.00014849,2]
[353403854,1739815894454,-529.48,0.00014849,2]
[353403855,1739815894463,-184.06359198,0.00014849,2]
[353403856,1739815894472,-500.0,0.00014849,2]
[353403857,1739815894482,-227.71813661,0.00014849,2]
[353403858,1739815894491,-879.53,0.00014849,2]
[353403859,1739815894500,-500.0,0.00014849,2]
[353403860,1739815894509,-872.31,0.00014849,2]
[353403861,1739815894518,-500.0,0.00014849,2]
[353403862,1739815894528,-500.0,0.00014849,2]
[353403863,1739815894538,-548.33,0.00014849,2]
[353403864,1739815894548,-502.61,0.00014849,2]
[353403865,1739815894557,-884.35,0.00014849,2]
[353403866,1739815894566,-527.868759,0.00014849,2]
[353403867,1739815894579,-630.35,0.00014849,2]
[353403868,1739815894588,-507.26,0.00014849,2]
[353403869,1739815894597,-1128.77,0.00014849,2]
[353403870,1739815894606,-500.0,0.00014849,2]
[353403871,1739815894615,-689.9,0.00014849,2]
[353403872,1739815894626,-504.07,0.00014849,2]
[353403873,1739815894635,-500.0,0.00014849,2]
[353403874,1739815894644,-500.0,0.00014849,2]
[353403875,1739815894654,-500.0,0.00014849,2]
[353403876,1739815894666,-610.26,0.00014849,2]
[353403877,1739815894678,-500.0,0.00014849,2]
[353403878,1739815894690,-465.181699,0.00014849,2]
[353403879,1739815894699,-500.0,0.00014849,2]
[353403880,1739815894710,-500.0,0.00014849,2]
[353403881,1739815894721,-500.0,0.00014849,2]
[353403882,1739815894731,-500.0,0.00014849,2]
[353403883,1739815894740,-500.0,0.00014849,2]
[353403884,1739815894752,-560.89,0.00014849,2]
[353403885,1739815894761,-779.36,0.00014849,2]
[353403886,1739815894769,-511.33,0.00014849,2]
[353403887,1739815894778,-500.0,0.00014849,2]
[353403888,1739815894787,-500.0,0.00014849,2]
[353403889,1739815894796,-500.0,0.00014849,2]
[353403890,1739815894805,-723.45,0.00014849,2]
[353403891,1739815894814,-826.0,0.00014849,2]
[353403892,1739815894824,-500.0,0.00014849,2]
[353403893,1739815894832,-500.0,0.00014849,2]
[353403894,1739815894841,-500.0,0.00014849,2]
[353403895,1739815894851,-500.0,0.00014849,2]
[353403896,1739815894860,-551.82,0.00014849,2]
[353403897,1739815894869,-500.0,0.00014849,2]
[353403898,1739815894878,-775.48,0.00014849,2]
[353403899,1739815894887,-676.02,0.00014849,2]
[353403900,1739815894896,-799.13,0.00014849,2]
[353403901,1739815894906,-500.0,0.00014849,2]
[353403902,1739815894915,-697.45,0.00014849,2]
[353403903,1739815894924,-527.52,0.00014849,2]
[353403904,1739815894935,-634.13,0.00014849,2]
[353403905,1739815894945,-1087.97,0.00014849,2]
[353403906,1739815894954,-781.6,0.00014849,2]
[353403907,1739815894964,-642.47,0.00014849,2]
[353403908,1739815894972,-500.0,0.00014849,2]
[353403909,1739815894984,-646.88,0.00014849,2]
[353403910,1739815894993,-627.97,0.00014849,2]
[353403911,1739815895003,-877.35,0.00014849,2]
[353403912,1739815895158,-500.0,0.00014849,2]
[353403913,1739815895167,-501.93,0.00014849,2]
[353403914,1739815895176,-2021.69,0.00014849,2]
[353403915,1739815895186,-500.0,0.00014849,2]
[353403916,1739815895196,-804.35,0.00014849,2]
[353403917,1739815895205,-1178.4,0.00014849,2]
[353403918,1739815895214,-2424.8,0.00014849,2]
[353403919,1739815895225,-713.08,0.00014849,2]
[353403920,1739815895234,-902.8,0.00014849,2]
[353403921,1739815895243,-500.0,0.00014849,2]
[353403922,1739815895252,-1659.27,0.00014849,2]
[353403923,1739815895261,-854.28,0.00014849,2]
[353403924,1739815895271,-772.93,0.00014849,2]
[353403925,1739815895280,-707.88,0.00014849,2]
[353403926,1739815895289,-1197.12,0.00014849,2]
[353403927,1739815895299,-500.0,0.00014849,2]
[353403928,1739815895309,-152.258352,0.00014849,2]
[353403929,1739815895318,-1865.74,0.00014849,2]
[353403930,1739815895328,-953.23,0.00014849,2]
[353403931,1739815895338,-500.0,0.00014849,2]
[353403932,1739815895348,-565.36,0.00014849,2]
[353403933,1739815895357,-2885.55,0.00014849,2]
[353403934,1739815895367,-973.56,0.00014849,2]
[353403935,1739815895376,-803.15,0.00014849,2]
[353403936,1739815895385,-1385.68,0.00014849,2]
[353403937,1739815895394,-974.48,0.00014849,2]
[353403938,1739815895403,-816.48,0.00014849,2]
[353403939,1739815895413,-922.79,0.00014849,2]
[353403940,1739815895423,-585.62,0.00014849,2]
[353403941,1739815895432,-500.0,0.00014849,2]
[353403942,1739815895442,-3073.59,0.00014849,2]
[353403943,1739815895452,-597.4,0.00014849,2]
[353403944,1739815895462,-1321.54,0.00014849,2]
[353403945,1739815895471,-1131.49,0.00014849,2]
[353403946,1739815895481,-1395.94,0.00014849,2]
[353403947,1739815895490,-1265.98,0.00014849,2]
[353403948,1739815895499,-500.0,0.00014849,2]
[353403949,1739815895508,-500.0,0.00014849,2]
[353403950,1739815895517,-1422.73,0.00014849,2]
[353403951,1739815895527,-1473.58,0.00014849,2]
[353403952,1739815895536,-1479.13,0.00014849,2]
[353403953,1739815895545,-500.0,0.00014849,2]
[353403954,1739815895554,-1202.26,0.00014849,2]
[353403955,1739815895564,-1748.85,0.00014849,2]
[353403956,1739815895573,-1547.54,0.00014849,2]
[353403957,1739815895582,-2001.49,0.00014849,2]
[353403958,1739815895591,-500.0,0.00014849,2]
[353403959,1739815895601,-1175.35,0.00014849,2]
[353403960,1739815895611,-500.0,0.00014849,2]
[353403961,1739815895621,-1101.2,0.00014849,2]
[353403962,1739815895630,-2574.83,0.00014849,2]
[353403963,1739815895639,-500.0,0.00014849,2]
[353403964,1739815895649,-1077.14,0.00014849,2]
[353403965,1739815895658,-1691.48,0.00014849,2]
[353403966,1739815895669,-1466.29,0.00014849,2]
[353403967,1739815895678,-1324.81,0.00014849,2]
[353403968,1739815895688,-1601.82,0.00014849,2]
[353403969,1739815895697,-525.21,0.00014849,2]
[353403970,1739815895706,-1698.43,0.00014849,2]
[353403971,1739815895717,-500.0,0.00014849,2]
[353403972,1739815895726,-500.0,0.00014849,2]
[353403973,1739815895735,-1051.07,0.00014849,2]
[353403974,1739815895746,-1893.07,0.00014849,2]
[353403975,1739815895757,-1434.34,0.00014849,2]
[353403976,1739815895766,-1559.87,0.00014849,2]
[353403977,1739815895776,-4247.72,0.00014849,2]
[353403978,1739815895785,-500.0,0.00014849,2]
[353403979,1739815895794,-697.24,0.00014849,2]
[353403980,1739815895803,-1490.44,0.00014849,2]
[353403981,1739815895814,-500.0,0.00014849,2]
[353403982,1739815895824,-2043.08,0.00014849,2]
[353403983,1739815895834,-1242.96,0.00014849,2]
[353403984,1739815895845,-500.0,0.00014849,2]
[353403985,1739815895856,-794.8,0.00014849,2]
[353403986,1739815895865,-1947.34,0.00014849,2]
[353403987,1739815895874,-500.0,0.00014849,2]
[353403988,1739815895886,-1505.04,0.00014849,2]
[353403989,1739815895895,-1445.54,0.00014849,2]
[353403990,1739815895904,-1114.18,0.00014849,2]
[353403991,1739815895913,-542.59359898,0.00014849,2]
[353403992,1739815895923,-2020.29,0.00014849,2]
[353403993,1739815895933,-845.62,0.00014849,2]
[353403994,1739815895942,-749.69,0.00014849,2]
[353403995,1739815895951,-776.01,0.00014849,2]
[353403996,1739815895961,-832.24,0.00014849,2]
[353403997,1739815895970,-504.07,0.00014849,2]
[353403998,1739815895979,-500.0,0.00014849,2]
[353403999,1739815895988,-3601.82,0.00014849,2]
[353404000,1739815895997,-1526.53,0.00014849,2]
[353404001,1739815896007,-1081.38,0.00014849,2]
[353404002,1739815896016,-1272.95,0.00014849,2]
[353404003,1739815896027,-704.58,0.00014849,2]
[353404004,1739815896036,-691.58,0.00014849,2]
[353404005,1739815896045,-564.18417206,0.00014849,2]
[353404006,1739815896054,-992.78,0.00014849,2]
[353404007,1739815896063,-596.73,0.00014849,2]
[353404008,1739815896072,-500.0,0.00014849,2]
[353404009,1739815896086,-2407.6,0.00014849,2]
[353404010,1739815896096,-1300.23,0.00014849,2]
[353404011,1739815896105,-1392.59,0.00014849,2]
[353404012,1739815896114,-2009.2,0.00014849,2]
[353404013,1739815896125,-1615.34,0.00014849,2]
[353404014,1739815896135,-500.0,0.00014849,2]
[353404015,1739815896144,-535.37,0.00014849,2]
[353404016,1739815896153,-1060.0,0.00014849,2]
[353404017,1739815896163,-512.19,0.00014849,2]
[353404018,1739815896172,-1404.72,0.00014849,2]
[353404019,1739815896181,-799.51,0.00014849,2]
[353404020,1739815896190,-2087.18,0.00014849,2]
[353404021,1739815896199,-1446.79,0.00014849,2]
[353404022,1739815896209,-846.61,0.00014849,2]
[353404023,1739815896218,-713.92,0.00014849,2]
[353404024,1739815896227,-2283.81,0.00014849,2]
[353404025,1739815896236,-500.0,0.00014849,2]
[353404026,1739815896246,-1112.79,0.00014849,2]
[353404027,1739815896255,-1608.4,0.00014849,2]
[353404028,1739815896265,-532.44,0.00014849,2]
[353404029,1739815896275,-1167.91,0.00014849,2]
[353404030,1739815896285,-500.0,0.00014849,2]
[353404031,1739815896296,-532.72,0.00014849,2]
[353404032,1739815896305,-526.92,0.00014849,2]
[353404033,1739815896314,-520.53816111,0.00014849,2]
[353404034,1739815896644,-306.69183889,0.00014849,2]
[353404035,1739815896655,-83.40899519,0.00014849,2]
[353404036,1739815896677,-416.59100481,0.00014849,2]
[353404037,1739815896687,-1013.33,0.00014849,2]
[353404038,1739815896696,-1149.69,0.00014849,2]
[353404039,1739815896707,-1073.86,0.00014849,2]
[353404040,1739815896717,-1210.93,0.00014849,2]
[353404041,1739815896726,-1039.4,0.00014849,2]
[353404042,1739815896737,-714.31,0.00014849,2]
[353404043,1739815896746,-2005.82,0.00014849,2]
[353404044,1739815896757,-727.34,0.00014849,2]
[353404045,1739815896766,-959.95,0.00014849,2]
[353404046,1739815896776,-1713.83,0.00014849,2]
[353404047,1739815896786,-1217.64,0.00014849,2]
[353404048,1739815896795,-430.0,0.00014855,2]
[353404049,1739815896805,-152.0,0.0001486,5]
[353404050,1739815896814,-300.0,0.0001487,2]
[353404051,1739815896824,-250.0,0.0001487,2]
[353404052,1739815896833,-500.0,0.00014876,2]
[353404053,1739815896843,-163.94247891,0.0001489,2]
[353404054,1739815896852,-2009.0,0.00014891,2]
[353404055,1739815896862,-500.0,0.00014898,2]
[353404056,1739815896872,-113812.60450892,0.00014899,2]
[353404057,1739815896883,-72000.21050833,0.000149,2]
[353404058,1739815896899,-1754.8557159,0.000149,2]
[353404059,1739815896918,-700.77,0.00014355,2]
[353404060,1739815896929,-1935.83591871,0.000149,2]
[353404061,1739815896942,-1600.65,0.000149,2]
[353404062,1739815896953,-436.776,0.000149,2]
[353404063,1739815896965,-7639.19148093,0.000149,2]
[353404064,1739815897329,-272.92499998,0.00013698,2]
[353404065,1739815897521,-227.07500002,0.00013698,2]
[353404066,1739815897532,-4210.32775558,0.00014,2]
[353404067,1739815897542,-20131.7078884,0.00014009,2]
[353404068,1739815897553,-1618.89,0.00014191,2]
[353404069,1739815897562,-1618.89,0.00014273,2]
[353404070,1739815897573,-1618.89,0.00014356,2]
[353404071,1739815897586,-700.77,0.00014437,2]
[353404072,1739815897596,-1264.81,0.00014438,2]
[353404073,1739815897605,-1618.89,0.00014438,2]
[353404074,1739815897615,-700.77,0.00014519,2]
[353404075,1739815897625,-1264.81,0.0001452,2]
[353404076,1739815897639,-1618.89,0.0001452,2]
[353404077,1739815897650,-700.77,0.00014601,2]
[353404078,1739815897660,-1264.81,0.00014602,2]
[353404079,1739815897675,-1618.89,0.00014602,2]
[353404080,1739815897685,-700.77,0.00014683,2]
[353404081,1739815897696,-1633.21,0.00014684,2]
[353404082,1739815897707,-1264.81,0.00014684,2]
[353404083,1739815897717,-1618.89,0.00014684,2]
[353404084,1739815897727,-700.77,0.00014766,2]
[353404085,1739815897737,-1633.21,0.00014767,2]
[353404086,1739815897749,-1264.81,0.00014767,2]
[353404087,1739815897759,-1618.89,0.00014767,2]
[353404088,1739815897769,-700.77,0.00014848,2]
[353404089,1739815897779,-1633.21,0.00014849,2]
[353404090,1739815897789,-1264.81,0.00014849,2]
[353404091,1739815897799,-1618.89,0.00014849,2]
[353404092,1739815897808,-53562.38229938,0.000149,2]
[353404093,1739815897820,-4943.7832645,0.000149,2]
[353404094,1739815897836,-722.66211148,0.000149,2]
[353404095,1739815898107,-500.0,0.00013698,2]
[353404096,1739815898118,-500.0,0.0001378,2]
[353404097,1739815898128,-500.0,0.00013863,2]
[353404098,1739815898139,-390.98687592,0.00014115,2]
[353404099,1739815898148,-11263.35208499,0.000149,2]
[353404100,1739815898166,-4210.32775558,0.000141,2]
[353404101,1739815898176,-24349.07909144,0.000149,2]
[353404102,1739815898185,-30000.0,0.000149,2]
[353404103,1739815898195,-3700.0,0.000149,5]
[353404104,1739815898204,-59011.99482878,0.000149,2]
[353404105,1739816160064,-508.55,0.00010965,2]
[353404106,1739816160087,-501.7,0.00010965,2]
[353404107,1739816160108,-491.15,0.00010965,2]
[353404108,1739816160130,-506.67,0.00010965,2]
[353404109,1739816160152,-501.22,0.00010965,2]
[353404110,1739816160174,-509.26,0.00010965,2]
[353404111,1739816160196,-503.12,0.00010965,2]
[353404112,1739816160219,-509.8,0.00010967,2]
[353404113,1739816160242,-507.59,0.0001097,2]
[353404114,1739816160267,-505.01,0.00010975,2]
[353404115,1739816160289,-501.99,0.00010986,2]
[353404116,1739816160311,-502.28,0.00011007,2]
[353404117,1739816160335,-509.92,0.0001105,2]
[353404118,1739816160359,-500.0,0.00011064,2]
[353404119,1739816160380,-600.0,0.00011064,2]
[353404120,1739816160402,-500.0,0.00011064,2]
[353404121,1739816160424,-1104.61,0.00011081,2]
[353404122,1739816160447,-491.81,0.00011136,2]
[353404123,1739816160470,-500.98,0.00011308,2]
[353404124,1739816160493,-504.79,0.00011649,2]
[353404125,1739816160516,-250.0,0.00012219,2]
[353404126,1739816160540,-150.0,0.00012298,2]
[353404127,1739816160564,-600.0,0.00012434,2]
[353404128,1739816160586,-500.0,0.00012434,2]
[353404129,1739816160609,-1104.61,0.00013345,2]
[353404130,1739816160633,-500.0,0.00013698,2]
[353404131,1739816160659,-500.0,0.00013698,2]
[353404132,1739816160681,-500.0,0.00013698,2]
[353404133,1739816160703,-500.0,0.00013698,2]
[353404134,1739816160725,-510.79,0.00013698,2]
[353404135,1739816160752,-500.0,0.00013698,2]
[353404136,1739816160777,-500.0,0.00013698,2]
[353404137,1739816160800,-603.25,0.00013698,2]
[353404138,1739816160823,-533.5,0.00013698,2]
[353404139,1739816160848,-500.0,0.00013698,2]
[353404140,1739816160870,-500.0,0.00013698,2]
[353404141,1739816160892,-500.0,0.00013698,2]
[353404142,1739816160916,-500.0,0.00013698,2]
[353404143,1739816160941,-452.14271478,0.00013698,2]
[353404144,1739816160963,-500.0,0.00013698,2]
[353404145,1739816160985,-500.0,0.00013698,2]
[353404146,1739816161009,-500.0,0.00013698,2]
[353404147,1739816161031,-500.0,0.00013698,2]
[353404148,1739816161055,-500.0,0.00013698,2]
[353404149,1739816161077,-500.0,0.00013698,2]
[353404150,1739816161099,-500.0,0.00013698,2]
[353404151,1739816161125,-500.0,0.00013698,2]
[353404152,1739816161149,-322.28,0.00013698,2]
[353404153,1739816161173,-1207.31,0.00013698,2]
[353404154,1739816161196,-500.0,0.00013698,2]
[353404155,1739816161218,-500.0,0.00013698,2]
[353404156,1739816161240,-783.64,0.00013698,2]
[353404157,1739816161264,-500.0,0.00013698,2]
[353404158,1739816161286,-500.0,0.00013698,2]
[353404159,1739816161309,-500.0,0.00013698,2]
[353404160,1739816161332,-807.13,0.00013698,2]
[353404161,1739816161360,-500.0,0.00013698,2]
[353404162,1739816161383,-573.6,0.00013698,2]
[353404163,1739816161406,-500.0,0.00013698,2]
[353404164,1739816161429,-771.17,0.00013698,2]
[353404165,1739816161453,-658.26,0.00013698,2]
[353404166,1739816161478,-841.15,0.00013698,2]
[353404167,1739816161500,-500.0,0.00013698,2]
[353404168,1739816161734,-500.0,0.00013698,2]
[353404169,1739816161759,-500.0,0.00013698,2]
[353404170,1739816161781,-500.0,0.00013698,2]
[353404171,1739816161805,-500.0,0.00013698,2]
[353404172,1739816161828,-564.36057334,0.00013698,2]
[353404173,1739816161850,-500.0,0.00013698,2]
[353404174,1739816161872,-500.0,0.00013698,2]
[353404175,1739816161895,-500.0,0.00013698,2]
[353404176,1739816161917,-594.48,0.00013698,2]
[353404177,1739816161939,-594.43,0.00013698,2]
[353404178,1739816161962,-500.0,0.00013698,2]
[353404179,1739816161984,-563.89,0.00013698,2]
[353404180,1739816162006,-500.0,0.00013698,2]
[353404181,1739816162029,-500.0,0.00013698,2]
[353404182,1739816162051,-500.0,0.00013698,2]
[353404183,1739816162074,-500.0,0.00013698,2]
[353404184,1739816162097,-500.0,0.00013698,2]
[353404185,1739816162119,-500.0,0.00013698,2]
[353404186,1739816162144,-511.07,0.00013698,2]
[353404187,1739816162166,-500.0,0.00013698,2]
[353404188,1739816162190,-663.19,0.00013698,2]
[353404189,1739816162212,-500.0,0.00013698,2]
[353404190,1739816162234,-544.54,0.00013698,2]
[353404191,1739816162258,-584.77,0.00013698,2]
[353404192,1739816162281,-500.0,0.00013698,2]
[353404193,1739816162303,-500.0,0.00013698,2]
[353404194,1739816162327,-500.0,0.00013698,2]
[353404195,1739816162350,-887.61,0.00013698,2]
[353404196,1739816162373,-500.0,0.00013698,2]
[353404197,1739816162397,-928.9,0.00013698,2]
[353404198,1739816162420,-815.41,0.00013698,2]
[353404199,1739816162446,-697.27,0.00013698,2]
[353404200,1739816162469,-500.0,0.00013698,2]
[353404201,1739816162491,-500.0,0.00013698,2]
[353404202,1739816162514,-500.0,0.00013698,2]
[353404203,1739816162536,-507.87,0.00013698,2]
[353404204,1739816162560,-500.0,0.00013698,2]
[353404205,1739816162582,-527.1568418,0.00013698,2]